bitfinex/quotes_SOLUSD_20240829
["timestamp","ask_amount","ask_price","bid_price","bid_amount"]
[1724961142463,22.3072,140.35,140.28,7.1285]
[1724961142662,7.1264,140.33,140.28,7.1285]
[1724961142865,7.1267,140.32,140.27,24.9512]
[1724961143067,7.1272,140.31,140.26,7.1295]
[1724961143264,43.66805241,140.35,140.26,7.1295]
[1724961143577,43.66805241,140.35,140.21,6.3526]
[1724961143578,7.1264,140.33,140.21,6.3526]
[1724961143781,43.66805241,140.35,140.27,7.1286]
[1724961143983,7.1269,140.32,140.27,7.1286]
[1724961144859,7.1261,140.33,140.28,7.1282]
[1724961145365,7.1272,140.31,140.27,7.1291]
[1724961145767,7.1277,140.3,140.26,24.9523]
[1724961145973,7.1271,140.31,140.26,24.9523]
[1724961146302,7.1277,140.3,140.26,24.9523]
[1724961146455,7.1281,140.29,140.22,75.0]
[1724961146667,7.1287,140.28,140.23,17.8271]
[1724961147266,7.1281,140.29,140.24,7.1302]
[1724961147466,7.1271,140.31,140.25,17.8248]
[1724961147688,7.1271,140.31,140.26,7.1294]
[1724961147893,7.1276,140.3,140.26,7.1294]
[1724961148079,43.52400882,140.35,140.27,7.1289]
[1724961148279,7.1271,140.31,140.27,7.1289]
[1724961148594,7.1266,140.32,140.27,7.1289]
[1724961148772,7.1261,140.33,140.27,17.8223]
[1724961149376,7.1268,140.32,140.27,17.8223]
[1724961149586,7.1268,140.32,140.27,24.951]
[1724961149794,7.1261,140.33,140.28,7.1285]
[1724961150602,7.1246,140.36,140.3,17.8187]
[1724961150803,7.1241,140.37,140.31,1.42528375]
[1724961151476,7.1236,140.38,140.32,17.8156]
[1724961151878,7.124,140.37,140.32,17.8156]
[1724961152097,7.124,140.37,140.32,24.9417]
[1724961153110,7.1236,140.38,140.33,7.126]
[1724961154194,16.1896,140.39,140.32,17.8156]
[1724961154394,42.29519344,140.38,140.29,17.8196]
[1724961154597,16.1896,140.39,140.25,15.898]
[1724961154598,7.1269,140.32,140.27,7.129]
[1724961154890,7.1261,140.33,140.28,7.1285]
[1724961155098,7.1261,140.33,140.26,17.8233]
[1724961155305,7.1266,140.32,140.27,7.1286]
[1724961156098,7.1276,140.3,140.26,7.1295]
[1724961156600,7.1271,140.31,140.26,7.1295]
[1724961157100,7.1266,140.32,140.25,17.8243]
[1724961157469,17.8105,140.37,140.27,17.822]
[1724961157470,7.1259,140.34,140.27,17.822]
[1724961157675,7.1259,140.34,140.29,7.128]
[1724961158402,7.1262,140.33,140.28,7.1285]
[1724961158574,7.1255,140.35,140.3,7.1275]
[1724961158883,7.1262,140.33,140.28,7.1285]
[1724961159092,7.1262,140.33,140.29,7.128]
[1724961159278,7.1256,140.34,140.29,7.128]
[1724961159478,7.1256,140.34,140.3,7.1275]
[1724961159872,19.72778361,140.39,140.31,7.1269]
[1724961160296,7.1249,140.36,140.31,7.1269]
[1724961160486,19.72778361,140.39,140.29,24.947]
[1724961161193,7.1256,140.34,140.29,24.947]
[1724961161396,7.125,140.35,140.31,7.1269]
[1724961162782,7.1246,140.36,140.32,7.1265]
[1724961162979,7.1246,140.36,140.32,7.1264]
[1724961163185,7.1241,140.37,140.33,8.03711799]
[1724961163401,7.1236,140.38,140.33,8.03711799]
[1724961163899,10.59004186,140.4,140.31,17.817]
[1724961163900,7.1241,140.37,140.32,7.1264]
[1724961165106,7.136,140.4,140.33,17.8139]
[1724961165286,7.1237,140.38,140.33,24.9395]
[1724961166105,7.1237,140.38,140.34,7.1254]
[1724961166307,7.1237,140.38,140.33,24.9398]
[1724961168208,7.1237,140.38,140.34,7.1253]
[1724961168983,7.1241,140.37,140.33,17.8139]
[1724961169701,7.1241,140.37,140.33,24.9397]
[1724961170410,7.1235,140.38,140.33,24.9397]
[1724961171032,16.1818,140.42,140.35,17.8115]
[1724961171317,7.1245,140.37,140.32,17.8161]
[1724961171604,33.9864,140.42,140.33,7.1257]
[1724961171605,7.1236,140.38,140.33,7.1257]
[1724961171796,7.1236,140.38,140.34,7.1255]
[1724961172186,7.1231,140.39,140.34,7.1255]
[1724961172909,7.1226,140.4,140.36,7.1244]
[1724961173105,7.1221,140.41,140.36,7.1244]
[1724961173610,7.1216,140.42,140.37,7.124]
[1724961173791,7.1211,140.43,140.38,7.1233]
[1724961174815,7.1205,140.44,140.38,17.8077]
[1724961175314,7.121,140.43,140.39,7.1229]
[1724961175903,7.1206,140.44,140.39,7.1229]
[1724961176113,7.121,140.43,140.38,24.9311]
[1724961177195,16.0428,140.46,140.3,35.6357]
[1724961177196,7.1236,140.38,140.32,15.6512]
[1724961177508,17.802,140.44,140.34,7.1251]
[1724961177719,7.1236,140.38,140.34,7.1251]
[1724961178591,7.1236,140.38,140.33,7.1258]
[1724961179310,17.8043,140.42,140.32,33.4667]
[1724961179311,7.1228,140.4,140.34,17.8134]
[1724961179492,7.1228,140.4,140.35,7.1246]
[1724961180117,17.8043,140.42,140.34,24.9388]
[1724961180499,15.0622,140.4,140.28,22.3336]
[1724961180708,17.8093,140.38,140.28,40.1543]
[1724961180890,15.0622,140.4,140.31,7.1266]
[1724961181092,20.0,140.39,140.31,7.1266]
[1724961181310,20.0,140.39,140.28,15.7455]
[1724961181513,7.1266,140.32,140.27,7.129]
[1724961182613,7.1266,140.32,140.28,7.1285]
[1724961182805,7.126,140.34,140.29,7.1279]
[1724961183006,7.126,140.34,140.3,7.1275]
[1724961183213,7.126,140.34,140.29,7.1279]
[1724961183520,7.1249,140.36,140.28,17.8204]
[1724961183708,7.1249,140.36,140.3,17.8182]
[1724961183909,7.1249,140.36,140.31,7.1266]
[1724961184707,7.1249,140.36,140.32,7.1265]
[1724961185428,276.59355503,140.4,140.33,7.1259]
[1724961185600,276.59355503,140.4,140.32,17.8158]
[1724961185601,7.123,140.39,140.34,7.1254]
[1724961185798,15.5516,140.44,140.37,7.1237]
[1724961186114,15.5516,140.44,140.36,24.9351]
[1724961186327,36.89253117,140.44,140.29,23.0159]
[1724961186522,36.89253117,140.44,140.3,65.25098]
[1724961186731,7.1225,140.4,140.35,17.8115]
[1724961186900,79.18772461,140.44,140.32,17.8157]
[1724961186901,17.8044,140.42,140.32,17.8157]
[1724961187097,7.1229,140.4,140.34,7.125]
[1724961187596,7.1229,140.4,140.35,7.1249]
[1724961188996,7.1239,140.38,140.34,17.8132]
[1724961189200,7.124,140.37,140.32,7.1261]
[1724961189802,7.124,140.37,140.33,7.1259]
[1724961190120,7.1246,140.36,140.32,7.1263]
[1724961190329,7.1241,140.37,140.32,7.1263]
[1724961191509,15.2231,140.37,140.25,22.7382]
[1724961191704,62.29519344,140.36,140.27,17.8224]
[1724961191922,7.1264,140.33,140.28,7.1284]
[1724961192928,42.29519344,140.36,140.29,17.8197]
[1724961193233,33.034,140.37,140.29,17.8197]
[1724961193417,33.034,140.37,140.3,7.1273]
[1724961193609,36.48808931,140.37,140.3,7.1273]
[1724961194327,7.1255,140.34,140.3,7.1273]
[1724961194727,7.1249,140.36,140.31,7.127]
[1724961194917,6.0037,140.38,140.31,19.2422637]
[1724961195342,7.1245,140.36,140.32,7.1265]
[1724961195535,7.1241,140.37,140.33,7.1258]
[1724961195719,15.0844,140.4,140.33,17.8143]
[1724961196035,22.207,140.4,140.35,7.1248]
[1724961196240,7.1226,140.4,140.36,7.1244]
[1724961196929,7.122,140.41,140.36,7.1244]
[1724961198330,7.122,140.41,140.32,65.14029344]
[1724961198331,7.1205,140.44,140.37,17.8091]
[1724961198509,7.1205,140.44,140.39,7.1228]
[1724961199409,7.121,140.43,140.39,7.1228]
[1724961200240,7.121,140.43,140.38,7.1234]
[1724961200604,9.73563507,140.46,140.34,53.4403]
[1724961200823,7.122,140.41,140.36,7.1244]
[1724961201033,7.1225,140.4,140.36,7.1244]
[1724961201337,17.8007,140.45,140.34,17.8133]
[1724961201629,7.1225,140.4,140.34,17.8133]
[1724961202002,9.73563507,140.46,140.33,3.33773947]
[1724961202208,6.3046,140.46,140.39,17.8065]
[1724961202521,6.3046,140.46,140.42,7.1211]
[1724961202710,6.3046,140.46,140.42,7.66537704]
[1724961202921,23.6176,140.48,140.43,7.66417541]
[1724961203332,7.1185,140.48,140.43,7.66417541]
[1724961203827,7.118,140.49,140.43,18.34497541]
[1724961204204,21.993,140.55,140.45,17.7991]
[1724961204433,21.993,140.55,140.46,7.1193]
[1724961204434,7.117,140.51,140.46,7.1193]
[1724961205712,17.7906,140.53,140.42,17.8031]
[1724961206223,7.1185,140.48,140.43,7.1205]
[1724961207315,17.7906,140.53,140.42,24.9244]
[1724961207505,65.0,140.52,140.42,24.9244]
[1724961208210,17.7906,140.53,140.44,17.8003]
[1724961208725,7.1164,140.52,140.46,17.798]
[1724961208914,21.993,140.55,140.46,17.798]
[1724961209242,7.1164,140.52,140.48,7.1184]
[1724961209423,21.993,140.55,140.49,8.53710957]
[1724961209616,7.1157,140.54,140.49,8.53710957]
[1724961209818,7.1165,140.52,140.48,17.7954]
[1724961210132,7.116,140.53,140.48,24.9137]
[1724961210321,21.993,140.55,140.47,7.1188]
[1724961210518,7.1175,140.5,140.45,24.9186]
[1724961210937,7.1175,140.5,140.46,7.1194]
[1724961211632,21.993,140.55,140.47,17.7965]
[1724961211847,17.7892,140.54,140.44,17.8005]
[1724961212046,37.7892,140.54,140.44,17.8005]
[1724961212227,37.7892,140.54,140.45,45.0]
[1724961212418,7.1175,140.5,140.45,45.0]
[1724961213041,17.7918,140.52,140.45,45.0]
[1724961213218,7.118,140.49,140.45,45.0]
[1724961213942,7.1175,140.5,140.45,7.1198]
[1724961214918,7.118,140.49,140.44,24.9209]
[1724961215215,17.7918,140.52,140.41,17.8045]
[1724961215417,65.0,140.51,140.41,17.8045]
[1724961216445,7.12,140.45,140.41,17.8045]
[1724961216938,7.1195,140.46,140.41,24.9264]
[1724961217318,7.1195,140.46,140.41,17.8045]
[1724961217523,7.1209,140.44,140.38,17.8085]
[1724961217722,22.266,140.48,140.38,17.8085]
[1724961217723,7.1212,140.43,140.38,17.8085]
[1724961218044,40.0631,140.48,140.34,17.8126]
[1724961218243,7.1224,140.41,140.35,7.1249]
[1724961218815,7.1227,140.4,140.35,7.1249]
[1724961219016,7.123,140.39,140.34,17.8126]
[1724961219241,22.266,140.44,140.29,6.2472]
[1724961219527,22.266,140.44,140.29,7.1278]
[1724961219528,7.1255,140.34,140.29,7.1278]
[1724961220360,7.1272,140.31,140.25,13.4971]
[1724961220523,7.1272,140.31,140.25,7.13]
[1724961221954,17.8125,140.36,140.24,17.826]
[1724961222162,17.8125,140.36,140.24,24.9564]
[1724961222163,7.1276,140.3,140.24,24.9564]
[1724961222546,7.1276,140.3,140.25,7.1299]
[1724961223166,7.127,140.32,140.25,7.1299]
[1724961223349,7.127,140.32,140.24,17.826]
[1724961223666,7.1272,140.31,140.25,45.0]
[1724961223848,7.1272,140.31,140.25,52.1299]
[1724961225164,21.20792982,140.36,140.26,17.8228]
[1724961225407,7.1265,140.33,140.27,52.25449]
[1724961225574,7.1266,140.32,140.27,7.129]
[1724961225746,7.126,140.33,140.28,52.1285]
[1724961226074,7.126,140.33,140.29,1.42531996]
[1724961226278,7.1255,140.35,140.29,7.1279]
[1724961226447,7.1255,140.35,140.3,7.1274]
[1724961226648,7.1258,140.34,140.28,69.9488]
[1724961227058,7.1258,140.34,140.29,7.128]
[1724961227255,7.126,140.33,140.28,62.8205]
[1724961227578,7.1286,140.28,140.23,7.1311]
[1724961227879,17.8161,140.33,140.25,7.1299]
[1724961228072,17.8161,140.33,140.22,17.8288]
[1724961228559,17.8116,140.36,140.24,17.8256]
[1724961228777,37.8116,140.36,140.24,17.8256]
[1724961228953,7.1287,140.28,140.24,17.8256]
[1724961229146,7.1282,140.29,140.24,24.9562]
[1724961229547,17.8156,140.33,140.24,17.8256]
[1724961229548,7.1286,140.28,140.24,17.8256]
[1724961229982,7.1292,140.27,140.22,7.1316]
[1724961230874,42.29519344,140.3,140.21,24.156]
[1724961230875,17.8156,140.33,140.24,17.8265]
[1724961231778,7.1271,140.31,140.26,7.1296]
[1724961232180,37.8116,140.36,140.24,17.8265]
[1724961232356,7.126,140.34,140.28,7.1285]
[1724961232903,7.126,140.34,140.29,7.128]
[1724961233549,24.84262249,140.38,140.3,17.8189]
[1724961233754,7.1255,140.34,140.3,17.8189]
[1724961234163,17.8127,140.35,140.24,17.8262]
[1724961234359,7.1274,140.31,140.26,7.1296]
[1724961234570,85.6212,140.37,140.22,30.0]
[1724961234751,85.6212,140.37,140.21,6.326]
[1724961234752,7.1296,140.26,140.21,6.326]
[1724961234955,7.1291,140.27,140.21,13.4579]
[1724961235254,7.1291,140.27,140.21,7.1319]
[1724961236081,7.1291,140.27,140.22,7.1314]
[1724961238283,7.1286,140.28,140.23,7.131]
[1724961239283,7.1281,140.29,140.24,7.1304]
[1724961239778,7.1286,140.28,140.23,7.131]
[1724961239982,6.0832,140.31,140.22,17.8283]
[1724961240423,7.129,140.28,140.23,7.131]
[1724961240585,7.1271,140.31,140.26,7.1291]
[1724961240888,15.8112,140.34,140.28,17.8206]
[1724961241059,15.8112,140.34,140.22,51.37667757]
[1724961241060,7.1266,140.32,140.27,7.129]
[1724961241259,7.1272,140.31,140.26,7.1295]
[1724961241474,15.8112,140.34,140.22,17.8288]
[1724961241674,7.1286,140.28,140.23,7.1311]
[1724961243179,15.8112,140.34,140.24,17.8258]
[1724961243380,7.1281,140.29,140.24,17.8258]
[1724961243795,7.1274,140.31,140.25,7.13]
[1724961243980,15.8112,140.34,140.27,17.8227]
[1724961244189,15.8112,140.34,140.23,17.8268]
[1724961244691,7.1285,140.29,140.24,7.1305]
[1724961244900,51.37667757,140.32,140.2,33.6984]
[1724961245280,51.37667757,140.32,140.22,17.8282]
[1724961245468,17.8161,140.33,140.22,17.8282]
[1724961245798,7.1284,140.29,140.24,7.1302]
[1724961246574,7.1287,140.28,140.23,7.1307]
[1724961246771,51.37667757,140.3,140.22,24.9597]
[1724961247083,7.1291,140.27,140.22,24.9597]
[1724961247283,7.1286,140.28,140.23,7.1311]
[1724961247501,7.1287,140.28,140.23,7.131]
[1724961248096,7.1291,140.27,140.22,17.8282]
[1724961248286,7.1287,140.28,140.23,7.131]
[1724961248768,7.1283,140.29,140.25,7.13]
[1724961249192,33.6254,140.34,140.26,7.1295]
[1724961249393,6.5933,140.35,140.28,17.8207]
[1724961249692,6.5933,140.35,140.3,7.1273]
[1724961249693,7.1251,140.35,140.3,7.1273]
[1724961250192,16.5815,140.37,140.27,15.9373]
[1724961250403,7.1229,140.4,140.35,7.125]
[1724961250579,16.4917,140.41,140.29,51.37667757]
[1724961250775,16.4917,140.41,140.32,17.8154]
[1724961251286,16.4917,140.41,140.34,7.1254]
[1724961251790,7.1225,140.4,140.35,7.125]
[1724961252101,7.122,140.41,140.35,7.125]
[1724961252296,24.1123,140.42,140.31,7.1268]
[1724961252596,7.1239,140.38,140.32,7.1263]
[1724961253100,7.1229,140.4,140.32,17.8153]
[1724961253281,7.1233,140.39,140.34,7.1255]
[1724961253482,7.1224,140.41,140.34,7.1255]
[1724961253887,6.3078,140.42,140.34,7.1255]
[1724961253888,7.1227,140.4,140.34,7.1255]
[1724961256005,7.1227,140.4,140.35,7.125]
[1724961256297,7.122,140.41,140.36,8.5488588]
[1724961256489,7.1214,140.43,140.36,19.2351588]
[1724961256690,7.1205,140.44,140.39,7.1229]
[1724961256889,7.1205,140.44,140.4,1.42434702]
[1724961257200,6.4866,140.46,140.38,17.8079]
[1724961257376,42.73012205,140.44,140.35,17.8122]
[1724961257579,7.1234,140.39,140.35,24.9371]
[1724961258100,7.1235,140.38,140.33,7.1256]
[1724961258411,59.04232205,140.42,140.32,17.8161]
[1724961258979,7.1235,140.38,140.33,7.1256]
[1724961259384,42.73012205,140.4,140.32,17.8161]
[1724961259699,42.73012205,140.4,140.33,7.1259]
[1724961259899,17.8061,140.41,140.33,7.1259]
[1724961260103,7.1239,140.38,140.33,7.1259]
[1724961260290,59.04232205,140.42,140.35,17.8124]
[1724961260606,59.04232205,140.42,140.32,17.816]
[1724961260607,76.84672205,140.42,140.32,17.816]
[1724961260802,7.1236,140.38,140.33,7.126]
[1724961261707,76.84672205,140.42,140.34,62.8133]
[1724961261708,7.1226,140.4,140.34,62.8133]
[1724961262000,16.3122,140.42,140.34,17.8133]
[1724961262184,7.123,140.39,140.34,24.9387]
[1724961262581,7.1236,140.38,140.34,24.9387]
[1724961264086,7.1231,140.39,140.34,24.9387]
[1724961265209,20.0,140.45,140.36,17.8108]
[1724961265210,7.122,140.41,140.36,17.8108]
[1724961265396,16.1706,140.45,140.36,17.8108]
[1724961265589,7.1206,140.44,140.4,7.1223]
[1724961265787,7.1199,140.46,140.41,7.1219]
[1724961266112,7.119,140.47,140.42,7.1213]
[1724961266288,7.1195,140.46,140.41,24.9264]
[1724961267086,7.1195,140.46,140.42,7.1214]
[1724961267385,16.1706,140.49,140.43,17.8015]
[1724961267581,16.1706,140.49,140.39,35.6146]
[1724961267812,16.1706,140.49,140.4,45.12549]
[1724961268007,7.1195,140.46,140.41,7.1219]
[1724961268197,7.1205,140.44,140.4,70.05329]
[1724961268394,58.90072205,140.49,140.4,62.8055]
[1724961268602,7.1195,140.46,140.41,7.1216]
[1724961269017,7.121,140.43,140.4,45.0]
[1724961269183,42.73012205,140.47,140.39,45.0]
[1724961269515,42.73012205,140.47,140.38,15.666]
[1724961269811,42.73012205,140.47,140.37,24.1596]
[1724961270391,7.1214,140.43,140.37,17.8099]
[1724961271515,7.1214,140.43,140.38,7.1232]
[1724961272001,7.1214,140.43,140.37,24.9338]
[1724961273012,7.1214,140.43,140.35,7.1249]
[1724961273013,42.73012205,140.43,140.35,7.1249]
[1724961273512,7.1229,140.4,140.34,24.9392]
[1724961273696,7.1229,140.4,140.35,7.125]
[1724961274518,42.73012205,140.39,140.3,17.818]
[1724961274699,42.73012205,140.39,140.33,7.1258]
[1724961274889,42.73012205,140.41,140.3,17.818]
[1724961274890,7.1239,140.38,140.32,7.1264]
[1724961275297,7.1242,140.37,140.32,7.1264]
[1724961275804,7.1234,140.39,140.33,17.8151]
[1724961276126,7.1246,140.36,140.3,17.8186]
[1724961276311,7.1246,140.36,140.3,24.9456]
[1724961276493,7.1246,140.36,140.31,7.127]
[1724961277217,42.73012205,140.37,140.3,17.8186]
[1724961277416,7.1256,140.34,140.28,7.1285]
[1724961277992,57.96672205,140.35,140.27,32.25969903]
[1724961278196,57.96672205,140.35,140.23,16.3609]
[1724961278395,57.96672205,140.35,140.27,7.1286]
[1724961278396,7.1261,140.33,140.27,7.1286]
[1724961279215,7.1261,140.33,140.27,24.9505]
[1724961279820,22.3616,140.35,140.3,7.1275]
[1724961280323,15.2366,140.35,140.23,16.3609]
[1724961280497,15.2366,140.35,140.24,24.9568]
[1724961280498,7.1281,140.29,140.24,24.9568]
[1724961281025,7.1281,140.29,140.24,17.8263]
[1724961281321,7.1288,140.28,140.24,17.8263]
[1724961281702,7.128,140.29,140.24,24.9567]
[1724961282023,42.73012205,140.31,140.24,24.9567]
[1724961282196,42.73012205,140.31,140.24,17.8263]
[1724961282728,42.73012205,140.33,140.19,101.77803038]
[1724961283018,62.8139,140.34,140.26,7.1291]
[1724961283019,7.1269,140.32,140.26,7.1291]
[1724961283226,57.96672205,140.35,140.28,7.1282]
[1724961283227,15.2366,140.35,140.28,7.1282]
[1724961283517,15.2366,140.35,140.29,7.128]
[1724961283518,7.1257,140.34,140.29,7.128]
[1724961284919,15.2366,140.35,140.3,7.1274]
[1724961285131,15.2366,140.35,140.29,7.128]
[1724961285132,7.1256,140.34,140.29,7.128]
[1724961285919,7.126,140.33,140.28,24.9489]
[1724961286110,7.127,140.32,140.26,7.1291]
[1724961286301,7.1271,140.31,140.26,7.1291]
[1724961287200,7.1266,140.32,140.26,7.1291]
[1724961288824,7.1266,140.32,140.27,7.129]
[1724961289324,7.1272,140.31,140.25,24.9546]
[1724961289523,7.1272,140.31,140.26,7.1295]
[1724961289727,7.1282,140.29,140.25,17.825]
[1724961289914,75.77932205,140.35,140.23,7.131]
[1724961289915,7.129,140.28,140.23,7.131]
[1724961290417,13.6256,140.3,140.24,7.1305]
[1724961290809,7.1282,140.29,140.24,7.1305]
[1724961291011,7.1287,140.28,140.23,7.1309]
[1724961291208,7.1282,140.29,140.24,7.1305]
[1724961292532,6.4976,140.3,140.24,7.1305]
[1724961292533,13.6252,140.3,140.25,7.13]
[1724961293030,60.54612205,140.33,140.26,7.1294]
[1724961293230,7.1271,140.31,140.26,7.1294]
[1724961293838,36.85399544,140.39,140.26,7.1294]
[1724961293839,13.5231,140.38,140.32,7.1264]
[1724961294011,7.1242,140.37,140.32,7.1264]
[1724961294335,7.1242,140.37,140.28,42.73012205]
[1724961294336,6.3992,140.38,140.33,1.42505853]
[1724961294523,7.1226,140.4,140.35,7.1249]
[1724961294723,7.122,140.41,140.36,7.1241]
[1724961295035,7.122,140.41,140.33,1.42505853]
[1724961295036,7.1227,140.4,140.35,24.9365]
[1724961296106,13.5211,140.42,140.37,7.124]
[1724961296310,13.5206,140.42,140.37,7.124]
[1724961297113,13.5206,140.42,140.38,7.1234]
[1724961297311,13.5206,140.42,140.36,7.1241]
[1724961297312,6.3992,140.42,140.36,7.1241]
[1724961297718,7.122,140.41,140.37,7.124]
[1724961298120,13.5207,140.42,140.37,7.124]
[1724961299313,23.4162,140.43,140.38,7.1235]
[1724961299514,7.121,140.43,140.38,7.1235]
[1724961300207,42.73012205,140.43,140.36,7.1245]
[1724961300412,6.1159,140.46,140.37,1.42467722]
[1724961300632,259.23742385,140.5,140.46,7.1194]
[1724961300633,6.1159,140.5,140.46,7.1194]
[1724961300932,48.84602205,140.5,140.39,17.8067]
[1724961301232,48.84602205,140.5,140.38,0.12549]
[1724961301233,6.1159,140.5,140.46,7.1193]
[1724961301411,6.0934,140.54,140.47,1.42367872]
[1724961301605,58.25532205,140.56,140.47,1.42367872]
[1724961301606,15.5252,140.56,140.47,7.1184]
[1724961301842,15.5252,140.56,140.42,17.8036]
[1724961301843,42.73012205,140.52,140.42,17.8036]
[1724961302023,7.1174,140.5,140.45,7.1195]
[1724961302421,42.73012205,140.5,140.41,22.6519]
[1724961302622,42.73012205,140.5,140.41,6.2626]
[1724961302833,42.73012205,140.5,140.42,7.121]
[1724961303041,42.73012205,140.52,140.41,6.2626]
[1724961303328,7.1158,140.54,140.47,17.7962]
[1724961303528,7.117,140.51,140.47,17.7962]
[1724961303918,7.117,140.51,140.46,7.1193]
[1724961304251,7.1159,140.54,140.48,7.1183]
[1724961304416,42.73012205,140.54,140.43,24.9228]
[1724961304739,42.73012205,140.52,140.43,24.9228]
[1724961305127,42.73012205,140.5,140.43,24.9228]
[1724961305324,7.1184,140.48,140.43,24.9228]
[1724961305526,7.119,140.47,140.41,6.2626]
[1724961306212,7.1184,140.48,140.42,7.121]
[1724961306515,7.1184,140.48,140.43,7.1208]
[1724961306717,42.73012205,140.54,140.46,7.1193]
[1724961306917,7.1166,140.52,140.46,17.7985]
[1724961307225,7.1176,140.5,140.46,17.7985]
[1724961307614,7.1185,140.48,140.43,7.1205]
[1724961307834,7.118,140.49,140.44,52.1204]
[1724961308348,60.52002205,140.53,140.44,52.1204]
[1724961308516,7.1159,140.53,140.44,45.0]
[1724961308714,76.04132205,140.56,140.44,45.0]
[1724961309016,45.0,140.55,140.44,45.0]
[1724961309541,7.1159,140.53,140.47,24.9156]
[1724961309738,7.1159,140.53,140.48,7.118]
[1724961310254,7.1174,140.51,140.46,7.119]
[1724961310464,7.1163,140.53,140.47,7.1189]
[1724961310610,7.1164,140.52,140.47,7.1189]
[1724961311129,7.1169,140.51,140.46,24.9169]
[1724961311636,58.25532205,140.56,140.43,78.33422205]
[1724961311866,58.25532205,140.56,140.46,17.7979]
[1724961312236,7.1164,140.52,140.47,7.1189]
[1724961314151,7.1159,140.53,140.47,7.1189]
[1724961314476,7.1159,140.53,140.48,7.1181]
[1724961315136,7.1159,140.53,140.49,1.42322204]
[1724961315339,7.1159,140.53,140.48,7.1181]
[1724961316165,7.1164,140.52,140.47,7.1187]
[1724961317063,42.73012205,140.52,140.43,17.8024]
[1724961317242,49.84762205,140.5,140.45,7.1199]
[1724961317455,7.1175,140.5,140.45,7.1199]
[1724961317651,7.1165,140.52,140.47,7.1188]
[1724961318940,42.73012205,140.52,140.43,17.8022]
[1724961319270,7.1175,140.5,140.44,45.0]
[1724961319476,42.73012205,140.54,140.46,17.7983]
[1724961319654,42.73012205,140.52,140.44,45.0]
[1724961319978,7.118,140.49,140.44,7.12]
[1724961320182,7.1172,140.51,140.46,7.1194]
[1724961320560,60.51862205,140.54,140.47,7.1187]
[1724961320763,7.1163,140.53,140.48,7.1183]
[1724961321063,7.1163,140.53,140.49,1.42326278]
[1724961321381,7.1154,140.54,140.49,8.54106278]
[1724961321677,7.116,140.53,140.48,24.9134]
[1724961322177,42.73012205,140.54,140.45,7.1196]
[1724961322375,42.73012205,140.52,140.45,7.1196]
[1724961322555,7.1175,140.5,140.45,7.1196]
[1724961323181,7.118,140.49,140.44,24.9207]
[1724961323367,7.118,140.49,140.44,23.9207]
[1724961323568,7.1184,140.48,140.44,16.8004]
[1724961324252,42.73012205,140.46,140.37,21.3405]
[1724961324457,42.73012205,140.48,140.33,7.32009755]
[1724961324458,7.1225,140.4,140.34,21.3405]
[1724961324656,7.1219,140.42,140.37,7.1238]
[1724961324961,7.122,140.41,140.36,7.1241]
[1724961325154,7.1227,140.4,140.35,24.9371]
[1724961325350,7.1232,140.39,140.35,17.8122]
[1724961325555,7.1235,140.38,140.34,21.3405]
[1724961325777,42.73012205,140.42,140.34,21.3405]
[1724961325975,7.1233,140.39,140.34,28.4659]
[1724961326281,7.1236,140.38,140.34,21.3405]
[1724961326578,7.123,140.39,140.34,21.3405]